[Event "*** Titled Tuesday Blitz"]
[Site "Chess.com"]
[Date "2020.04.07"]
[Round "3"]
[White "Rogue_King"]
[Black "Noam_Vitenberg"]
[Result "0-1"]
[WhiteElo "2229"]
[BlackElo "2426"]
[TimeControl "180+1"]
[EndTime "13:29:55 PDT"]
[Termination "Noam_Vitenberg won on time"]

1. d4 {[%clk 0:03:00.9]} 1... Nf6 {[%clk 0:02:59.6]} 2. c4 {[%clk 0:03:00.6]}
2... e6 {[%clk 0:02:59.5]} 3. Nc3 {[%clk 0:03:00.9]} 3... d5 {[%clk 0:03:00.4]}
4. cxd5 {[%clk 0:03:00.1]} 4... exd5 {[%clk 0:03:01.3]} 5. Bg5 {[%clk
0:02:59.8]} 5... c6 {[%clk 0:03:01.7]} 6. Qc2 {[%clk 0:02:59.3]} 6... Bd6 {[%clk
0:03:01.5]} 7. e3 {[%clk 0:02:56.5]} 7... O-O {[%clk 0:03:00.1]} 8. Bd3 {[%clk
0:02:55.8]} 8... h6 {[%clk 0:03:00]} 9. Bh4 {[%clk 0:02:56.1]} 9... Re8 {[%clk
0:02:59.1]} 10. Nge2 {[%clk 0:02:54]} 10... a5 {[%clk 0:02:57.9]} 11. Bg3 {[%clk
0:02:40.2]} 11... Na6 {[%clk 0:02:56.5]} 12. a3 {[%clk 0:02:39]} 12... Nc7
{[%clk 0:02:55.5]} 13. O-O {[%clk 0:02:38]} 13... Ne6 {[%clk 0:02:55]} 14. f3
{[%clk 0:02:34.7]} 14... Ng5 {[%clk 0:02:51.2]} 15. Bf2 {[%clk 0:02:32.3]} 15...
Qc7 {[%clk 0:02:33.7]} 16. Kh1 {[%clk 0:02:28.8]} 16... Bxh2 {[%clk 0:02:01]}
17. f4 {[%clk 0:02:14.8]} 17... Ng4 {[%clk 0:02:00.6]} 18. fxg5 {[%clk
0:02:04.5]} 18... hxg5 {[%clk 0:02:01.5]} 19. Bh7+ {[%clk 0:01:55.9]} 19... Kf8
{[%clk 0:01:48.5]} 20. Bf5 {[%clk 0:01:55.2]} 20... Qd6 {[%clk 0:01:14.5]} 21.
g3 {[%clk 0:01:14.3]} 21... Qh6 {[%clk 0:00:37.4]} 22. Kg2 {[%clk 0:01:12.4]}
22... Bxg3 {[%clk 0:00:26]} 23. Nxg3 {[%clk 0:01:02.9]} 23... Qh2+ {[%clk
0:00:21.7]} 24. Kf3 {[%clk 0:01:02.6]} 24... Nxe3 {[%clk 0:00:13.3]} 25. Bxe3
{[%clk 0:00:53.4]} 25... g4+ {[%clk 0:00:13]} 26. Kxg4 {[%clk 0:00:41.5]} 26...
Qxc2 {[%clk 0:00:12.2]} 27. Rf2 {[%clk 0:00:19.9]} 27... Qd3 {[%clk 0:00:08.3]}
28. Bf4 {[%clk 0:00:14.2]} 28... g6 {[%clk 0:00:03.5]} 29. Bh6+ {[%clk
0:00:10.4]} 29... Ke7 {[%clk 0:00:02.3]} 30. Re1+ {[%clk 0:00:07.6]} 30... Kd8
{[%clk 0:00:01.4]} 31. Bg5+ {[%clk 0:00:06.1]} 31... Kc7 {[%clk 0:00:01.7]} 32.
Bf4+ {[%clk 0:00:05.9]} 32... Kb6 {[%clk 0:00:01.6]} 33. Bxc8 {[%clk 0:00:03.4]}
33... Raxc8 {[%clk 0:00:01.4]} 34. Rxe8 {[%clk 0:00:01.1]} 34... Rxe8 {[%clk
0:00:02.3]} 0-1

[Event "*** Titled Tuesday Blitz"]
[Site "Chess.com"]
[Date "2020.04.07"]
[Round "3"]
[White "HElissalt"]
[Black "Filip_Covic"]
[Result "1/2-1/2"]
[WhiteElo "2076"]
[BlackElo "2337"]
[TimeControl "180+1"]
[EndTime "13:29:56 PDT"]
[Termination "Game drawn by repetition"]

1. d4 {[%clk 0:03:00.9]} 1... Nf6 {[%clk 0:02:59.7]} 2. c4 {[%clk 0:03:00.3]}
2... e6 {[%clk 0:02:59.8]} 3. Nc3 {[%clk 0:02:59.7]} 3... Bb4 {[%clk 0:02:59]}
4. e3 {[%clk 0:02:59.6]} 4... O-O {[%clk 0:02:56.8]} 5. Bd3 {[%clk 0:02:59.3]}
5... d5 {[%clk 0:02:55.6]} 6. Ne2 {[%clk 0:02:59]} 6... dxc4 {[%clk 0:02:39.8]}
7. Bxc4 {[%clk 0:02:57.9]} 7... e5 {[%clk 0:02:39.3]} 8. a3 {[%clk 0:02:52]}
8... Bd6 {[%clk 0:02:18.4]} 9. h3 {[%clk 0:02:43.1]} 9... exd4 {[%clk 0:02:15]}
10. exd4 {[%clk 0:02:41.8]} 10... Re8 {[%clk 0:02:11.3]} 11. O-O {[%clk
0:02:40.5]} 11... Be6 {[%clk 0:01:58.5]} 12. Bd3 {[%clk 0:02:27.6]} 12... c6
{[%clk 0:01:50.3]} 13. Re1 {[%clk 0:02:14.3]} 13... Nbd7 {[%clk 0:01:26.1]} 14.
Bc2 {[%clk 0:02:05.9]} 14... Bc4 {[%clk 0:01:14.1]} 15. b3 {[%clk 0:02:05.2]}
15... Ba6 {[%clk 0:01:12.7]} 16. Bg5 {[%clk 0:01:56.8]} 16... h6 {[%clk
0:01:09.4]} 17. Be3 {[%clk 0:01:47.7]} 17... Nb6 {[%clk 0:00:47]} 18. Qd2 {[%clk
0:01:47.3]} 18... Bf8 {[%clk 0:00:37.4]} 19. Nf4 {[%clk 0:01:20.7]} 19... Nbd5
{[%clk 0:00:29]} 20. Nd3 {[%clk 0:01:20.3]} 20... Nxc3 {[%clk 0:00:20.5]} 21.
Qxc3 {[%clk 0:01:18.3]} 21... Nd5 {[%clk 0:00:13.7]} 22. Qd2 {[%clk 0:01:18.1]}
22... Nxe3 {[%clk 0:00:13.8]} 23. fxe3 {[%clk 0:01:17.1]} 23... Qg5 {[%clk
0:00:12.9]} 24. Nf4 {[%clk 0:01:06.3]} 24... Bd6 {[%clk 0:00:12.4]} 25. Qf2
{[%clk 0:00:44.3]} 25... Rad8 {[%clk 0:00:10.5]} 26. Rad1 {[%clk 0:00:42.6]}
26... Bxf4 {[%clk 0:00:07.5]} 27. Qxf4 {[%clk 0:00:41.7]} 27... Qxf4 {[%clk
0:00:07.4]} 28. exf4 {[%clk 0:00:41.2]} 28... Rxe1+ {[%clk 0:00:07.1]} 29. Rxe1
{[%clk 0:00:41.2]} 29... Kf8 {[%clk 0:00:07.2]} 30. Rd1 {[%clk 0:00:39.6]} 30...
Ke7 {[%clk 0:00:05.4]} 31. Be4 {[%clk 0:00:39]} 31... Rd6 {[%clk 0:00:04.3]} 32.
Kf2 {[%clk 0:00:37.8]} 32... b6 {[%clk 0:00:03.3]} 33. Kf3 {[%clk 0:00:37.1]}
33... Bb7 {[%clk 0:00:03.4]} 34. b4 {[%clk 0:00:36.8]} 34... Bc8 {[%clk
0:00:03.3]} 35. g4 {[%clk 0:00:35.8]} 35... Bd7 {[%clk 0:00:03.6]} 36. f5 {[%clk
0:00:35.5]} 36... f6 {[%clk 0:00:03.7]} 37. Kf4 {[%clk 0:00:35.5]} 37... Kd8
{[%clk 0:00:03.8]} 38. Rd3 {[%clk 0:00:34.5]} 38... Kc7 {[%clk 0:00:04.3]} 39.
Rc3 {[%clk 0:00:34]} 39... Kb8 {[%clk 0:00:04.8]} 40. Rd3 {[%clk 0:00:33.7]}
40... Kc7 {[%clk 0:00:05.2]} 41. a4 {[%clk 0:00:32.1]} 41... a5 {[%clk
0:00:04.5]} 42. bxa5 {[%clk 0:00:31.3]} 42... bxa5 {[%clk 0:00:05.4]} 43. Ke3
{[%clk 0:00:31.1]} 43... Kb6 {[%clk 0:00:05.8]} 44. Rc3 {[%clk 0:00:31.1]} 44...
Be8 {[%clk 0:00:05.1]} 45. Rb3+ {[%clk 0:00:31.2]} 45... Ka7 {[%clk 0:00:04.9]}
46. Rc3 {[%clk 0:00:31]} 46... Kb6 {[%clk 0:00:05]} 47. Rb3+ {[%clk 0:00:30.8]}
47... Ka7 {[%clk 0:00:05]} 48. Rc3 {[%clk 0:00:29]} 48... Kb6 {[%clk 0:00:05]}
1/2-1/2

[Event "*** Titled Tuesday Blitz"]
[Site "Chess.com"]
[Date "2020.04.07"]
[Round "3"]
[White "SahajGrover"]
[Black "Sharpchess22"]
[Result "0-1"]
[WhiteElo "2653"]
[BlackElo "2924"]
[TimeControl "180+1"]
[EndTime "13:30:00 PDT"]
[Termination "Sharpchess22 won by resignation"]

1. e4 {[%clk 0:03:00.9]} 1... e5 {[%clk 0:02:57]} 2. Nf3 {[%clk 0:02:59.4]} 2...
Nc6 {[%clk 0:02:56.9]} 3. Bb5 {[%clk 0:02:58.9]} 3... Nf6 {[%clk 0:02:56.1]} 4.
d3 {[%clk 0:02:58.3]} 4... Bc5 {[%clk 0:02:55]} 5. Bxc6 {[%clk 0:02:57.3]} 5...
dxc6 {[%clk 0:02:54.9]} 6. Nbd2 {[%clk 0:02:52.3]} 6... Be6 {[%clk 0:02:53.8]}
7. Nb3 {[%clk 0:02:49.2]} 7... Bd6 {[%clk 0:02:53.8]} 8. h3 {[%clk 0:02:41.5]}
8... Qe7 {[%clk 0:02:52.5]} 9. Be3 {[%clk 0:02:35.6]} 9... a5 {[%clk 0:02:46.4]}
10. Ng5 {[%clk 0:02:30.6]} 10... Bd7 {[%clk 0:02:44.2]} 11. Nd2 {[%clk
0:02:30.2]} 11... b5 {[%clk 0:02:42.8]} 12. O-O {[%clk 0:02:27.5]} 12... a4
{[%clk 0:02:38.8]} 13. c4 {[%clk 0:02:21]} 13... h6 {[%clk 0:02:28.8]} 14. Ngf3
{[%clk 0:02:20.2]} 14... O-O {[%clk 0:02:25.5]} 15. Qc2 {[%clk 0:02:14.3]} 15...
Qe6 {[%clk 0:02:24.3]} 16. d4 {[%clk 0:02:09.6]} 16... exd4 {[%clk 0:02:07.7]}
17. Bxd4 {[%clk 0:02:04.2]} 17... c5 {[%clk 0:01:58.5]} 18. Bxf6 {[%clk
0:01:55]} 18... Qxf6 {[%clk 0:01:57.8]} 19. cxb5 {[%clk 0:01:46.8]} 19... Bxb5
{[%clk 0:01:57.4]} 20. Rfe1 {[%clk 0:01:47.4]} 20... Rfe8 {[%clk 0:01:55]} 21.
e5 {[%clk 0:01:38.5]} 21... Bxe5 {[%clk 0:01:49.9]} 22. Qxc5 {[%clk 0:01:38.2]}
22... Bxb2 {[%clk 0:01:49.6]} 23. Qxb5 {[%clk 0:01:03]} 23... c6 {[%clk
0:01:46.4]} 24. Qf1 {[%clk 0:00:54.8]} 24... Bxa1 {[%clk 0:01:43.5]} 25. Rxa1
{[%clk 0:00:55.7]} 25... Rad8 {[%clk 0:01:34.3]} 26. Rb1 {[%clk 0:00:51.9]}
26... Rb8 {[%clk 0:01:31.7]} 27. Rxb8 {[%clk 0:00:45]} 27... Rxb8 {[%clk
0:01:31.2]} 28. Qc4 {[%clk 0:00:44.9]} 28... a3 {[%clk 0:01:25.8]} 29. g3 {[%clk
0:00:42.1]} 29... Qe6 {[%clk 0:01:21.3]} 30. Qxe6 {[%clk 0:00:37.4]} 30... fxe6
{[%clk 0:01:21.4]} 31. Nc4 {[%clk 0:00:37.9]} 31... Rb3 {[%clk 0:01:13.7]} 32.
Nfe5 {[%clk 0:00:18.2]} 32... Rc3 {[%clk 0:01:11.3]} 33. Kf1 {[%clk 0:00:17.7]}
33... g5 {[%clk 0:01:08.2]} 34. Ke1 {[%clk 0:00:17.4]} 34... Rc1+ {[%clk
0:01:05.3]} 35. Ke2 {[%clk 0:00:14.7]} 35... Rc2+ {[%clk 0:01:04.9]} 36. Ke3
{[%clk 0:00:13.3]} 36... Rxa2 {[%clk 0:01:05]} 37. Nxc6 {[%clk 0:00:13.5]} 37...
Ra1 {[%clk 0:01:05.4]} 38. Nxa3 {[%clk 0:00:08.9]} 38... Rxa3+ {[%clk
0:01:05.1]} 39. Ke4 {[%clk 0:00:09.8]} 39... Kf7 {[%clk 0:01:00.8]} 40. Ke5
{[%clk 0:00:09.3]} 40... Rd3 {[%clk 0:00:49.3]} 41. Nd4 {[%clk 0:00:07.6]} 41...
Rd1 {[%clk 0:00:48.6]} 42. Ke4 {[%clk 0:00:04.9]} 42... Kf6 {[%clk 0:00:47.7]}
43. Ke3 {[%clk 0:00:04.9]} 43... Rh1 {[%clk 0:00:46.7]} 44. Kf3 {[%clk
0:00:03.8]} 44... Rxh3 {[%clk 0:00:42.4]} 45. Kg2 {[%clk 0:00:04.2]} 45... g4
{[%clk 0:00:42.8]} 46. f3 {[%clk 0:00:03.4]} 46... Rh5 {[%clk 0:00:41.6]} 47.
fxg4 {[%clk 0:00:03.8]} 47... Rd5 {[%clk 0:00:41.2]} 48. Nf3 {[%clk 0:00:03.7]}
48... e5 {[%clk 0:00:39.8]} 0-1

[Event "*** Titled Tuesday Blitz"]
[Site "Chess.com"]
[Date "2020.04.07"]
[Round "3"]
[White "zivicd"]
[Black "vovachesss"]
[Result "1-0"]
[WhiteElo "2343"]
[BlackElo "2638"]
[TimeControl "180+1"]
[EndTime "13:30:01 PDT"]
[Termination "zivicd won on time"]

1. e4 {[%clk 0:03:00.9]} 1... e5 {[%clk 0:02:55.7]} 2. Nf3 {[%clk 0:02:59.4]}
2... d5 {[%clk 0:02:56.3]} 3. Nxe5 {[%clk 0:02:56.3]} 3... Bd6 {[%clk
0:02:56.3]} 4. d4 {[%clk 0:02:56.3]} 4... dxe4 {[%clk 0:02:56.6]} 5. Nc4 {[%clk
0:02:55.3]} 5... Nf6 {[%clk 0:02:56.2]} 6. Nc3 {[%clk 0:02:54.6]} 6... O-O
{[%clk 0:02:55.7]} 7. Bg5 {[%clk 0:02:52]} 7... Nc6 {[%clk 0:02:55.6]} 8. Ne3
{[%clk 0:02:50.4]} 8... Re8 {[%clk 0:02:54.7]} 9. a3 {[%clk 0:02:48.6]} 9... h6
{[%clk 0:02:53.1]} 10. Bh4 {[%clk 0:02:47.9]} 10... Be7 {[%clk 0:02:41.1]} 11.
Bb5 {[%clk 0:02:39.2]} 11... Bd7 {[%clk 0:02:37.3]} 12. O-O {[%clk 0:02:35.2]}
12... a6 {[%clk 0:02:29.8]} 13. Ba4 {[%clk 0:02:31.7]} 13... b5 {[%clk
0:01:58.5]} 14. Bb3 {[%clk 0:02:30.9]} 14... Na5 {[%clk 0:01:58.8]} 15. Ba2
{[%clk 0:02:30.6]} 15... Nb7 {[%clk 0:01:55]} 16. b4 {[%clk 0:02:20.9]} 16...
Nd6 {[%clk 0:01:53.5]} 17. Qe2 {[%clk 0:02:16.6]} 17... Nf5 {[%clk 0:01:49.7]}
18. Nxf5 {[%clk 0:02:14.4]} 18... Bxf5 {[%clk 0:01:50.6]} 19. Qd2 {[%clk
0:02:06.1]} 19... Bd6 {[%clk 0:01:25.6]} 20. Bg3 {[%clk 0:02:03.2]} 20... Bxg3
{[%clk 0:01:16.2]} 21. hxg3 {[%clk 0:02:04.1]} 21... Qd6 {[%clk 0:01:17]} 22.
Ne2 {[%clk 0:01:40.2]} 22... Rad8 {[%clk 0:01:15]} 23. c3 {[%clk 0:01:39.7]}
23... c5 {[%clk 0:01:14.2]} 24. bxc5 {[%clk 0:01:22.7]} 24... Qxc5 {[%clk
0:01:12.8]} 25. Qf4 {[%clk 0:01:22.6]} 25... Qc8 {[%clk 0:01:07.8]} 26. Rac1
{[%clk 0:01:21.8]} 26... Be6 {[%clk 0:01:00.5]} 27. Bxe6 {[%clk 0:01:16]} 27...
Rxe6 {[%clk 0:01:00.4]} 28. Qh4 {[%clk 0:01:13.5]} 28... Rc6 {[%clk 0:00:58.5]}
29. f3 {[%clk 0:01:09.3]} 29... e3 {[%clk 0:00:52.7]} 30. Rfd1 {[%clk 0:01:05]}
30... Nd5 {[%clk 0:00:49.3]} 31. Rd3 {[%clk 0:01:04.9]} 31... Qc7 {[%clk
0:00:43.3]} 32. Nf4 {[%clk 0:00:58.6]} 32... Nb6 {[%clk 0:00:30.9]} 33. Rxe3
{[%clk 0:00:49.5]} 33... g5 {[%clk 0:00:30.2]} 34. Qg4 {[%clk 0:00:44.7]} 34...
f5 {[%clk 0:00:21.8]} 35. Qxf5 {[%clk 0:00:44.3]} 35... gxf4 {[%clk 0:00:22.2]}
36. Re6 {[%clk 0:00:40.9]} 36... Rxe6 {[%clk 0:00:19.8]} 37. Qxe6+ {[%clk
0:00:40.8]} 37... Kg7 {[%clk 0:00:14.5]} 38. Re1 {[%clk 0:00:35.8]} 38... Rd6
{[%clk 0:00:13.3]} 39. Qe5+ {[%clk 0:00:34.1]} 39... Kg6 {[%clk 0:00:10]} 40.
Qxf4 {[%clk 0:00:32.5]} 40... Qd7 {[%clk 0:00:08]} 41. Re5 {[%clk 0:00:27.8]}
41... Nd5 {[%clk 0:00:04.5]} 42. Qe4+ {[%clk 0:00:27.8]} 42... Kg7 {[%clk
0:00:03.9]} 43. Re8 {[%clk 0:00:22.1]} 43... Qf7 {[%clk 0:00:02.7]} 44. Qe5+
{[%clk 0:00:20.1]} 1-0

[Event "*** Titled Tuesday Blitz"]
[Site "Chess.com"]
[Date "2020.04.07"]
[Round "3"]
[White "otrov-11"]
[Black "Zurability"]
[Result "0-1"]
[WhiteElo "2419"]
[BlackElo "2679"]
[TimeControl "180+1"]
[EndTime "13:30:02 PDT"]
[Termination "Zurability won by resignation"]

1. d4 {[%clk 0:03:00.9]} 1... Nf6 {[%clk 0:02:58.8]} 2. g3 {[%clk 0:02:59.9]}
2... c5 {[%clk 0:02:58.4]} 3. d5 {[%clk 0:02:59.7]} 3... e6 {[%clk 0:02:53.7]}
4. c4 {[%clk 0:02:59.4]} 4... exd5 {[%clk 0:02:52]} 5. cxd5 {[%clk 0:03:00.3]}
5... b5 {[%clk 0:02:52.6]} 6. Bg2 {[%clk 0:02:58.8]} 6... d6 {[%clk 0:02:52.3]}
7. e4 {[%clk 0:02:58.7]} 7... Nbd7 {[%clk 0:02:47.8]} 8. Nf3 {[%clk 0:02:23.3]}
8... g6 {[%clk 0:02:44.5]} 9. O-O {[%clk 0:02:22.8]} 9... Bg7 {[%clk 0:02:44.7]}
10. Re1 {[%clk 0:02:19.6]} 10... O-O {[%clk 0:02:44.8]} 11. Bf4 {[%clk
0:02:13.5]} 11... Qb6 {[%clk 0:02:33.8]} 12. Nc3 {[%clk 0:02:11.5]} 12... Nh5
{[%clk 0:02:27.9]} 13. Be3 {[%clk 0:02:05.3]} 13... b4 {[%clk 0:02:22.4]} 14.
Na4 {[%clk 0:02:02.9]} 14... Qa6 {[%clk 0:02:12.7]} 15. Bf1 {[%clk 0:01:55.7]}
15... Qa5 {[%clk 0:02:07.3]} 16. a3 {[%clk 0:01:52.2]} 16... Rb8 {[%clk
0:01:54]} 17. Qd2 {[%clk 0:01:49.8]} 17... Qc7 {[%clk 0:01:48.4]} 18. Rec1
{[%clk 0:01:39]} 18... bxa3 {[%clk 0:01:38.2]} 19. Rxa3 {[%clk 0:01:37.5]} 19...
Nhf6 {[%clk 0:01:24.9]} 20. e5 {[%clk 0:01:25.4]} 20... Ng4 {[%clk 0:01:03.9]}
21. exd6 {[%clk 0:01:22.5]} 21... Qxd6 {[%clk 0:00:58.8]} 22. Bf4 {[%clk
0:00:57.1]} 22... Nge5 {[%clk 0:00:58.5]} 23. Nxe5 {[%clk 0:00:57.2]} 23... Nxe5
{[%clk 0:00:49.6]} 24. Re3 {[%clk 0:00:47]} 24... Bb7 {[%clk 0:00:31]} 25. Rce1
{[%clk 0:00:46.1]} 25... f6 {[%clk 0:00:28]} 26. Bg2 {[%clk 0:00:44.7]} 26...
Ba8 {[%clk 0:00:23.4]} 27. Nc3 {[%clk 0:00:44]} 27... Rb4 {[%clk 0:00:22.9]} 28.
Bxe5 {[%clk 0:00:43.5]} 28... fxe5 {[%clk 0:00:22.8]} 29. Ne4 {[%clk 0:00:43.9]}
29... Qb6 {[%clk 0:00:21.3]} 30. d6 {[%clk 0:00:34.6]} 30... Rxb2 {[%clk
0:00:18]} 31. Qd3 {[%clk 0:00:35]} 31... Kh8 {[%clk 0:00:13.2]} 32. d7 {[%clk
0:00:26.9]} 32... Rb4 {[%clk 0:00:12.9]} 33. Ng5 {[%clk 0:00:21.7]} 33... Rd4
{[%clk 0:00:12.9]} 34. Qb3 {[%clk 0:00:14.9]} 34... Rxd7 {[%clk 0:00:10.9]} 35.
Bxa8 {[%clk 0:00:12.9]} 35... h6 {[%clk 0:00:09.7]} 36. Ne6 {[%clk 0:00:10]}
36... Rxa8 {[%clk 0:00:08.4]} 37. Nxg7 {[%clk 0:00:09.2]} 37... Kxg7 {[%clk
0:00:07.4]} 38. Qc3 {[%clk 0:00:09.6]} 38... Kh7 {[%clk 0:00:03.9]} 39. Rxe5
{[%clk 0:00:09.8]} 39... Rf8 {[%clk 0:00:03.5]} 40. Re7+ {[%clk 0:00:09.2]}
40... Rf7 {[%clk 0:00:03.6]} 41. Re8 {[%clk 0:00:09.3]} 41... Rg7 {[%clk
0:00:04.2]} 42. Qf6 {[%clk 0:00:08.3]} 42... Qxf6 {[%clk 0:00:04.1]} 0-1

[Event "*** Titled Tuesday Blitz"]
[Site "Chess.com"]
[Date "2020.04.07"]
[Round "3"]
[White "sergeikim"]
[Black "AlanZhang"]
[Result "0-1"]
[WhiteElo "2343"]
[BlackElo "2141"]
[TimeControl "180+1"]
[EndTime "13:30:02 PDT"]
[Termination "AlanZhang won on time"]

1. d4 {[%clk 0:03:00]} 1... Nf6 {[%clk 0:02:59.3]} 2. c4 {[%clk 0:03:00.1]} 2...
e6 {[%clk 0:02:59]} 3. Nc3 {[%clk 0:02:59.8]} 3... d5 {[%clk 0:02:58.7]} 4. Nf3
{[%clk 0:02:58.3]} 4... Be7 {[%clk 0:02:58]} 5. Bf4 {[%clk 0:02:56.7]} 5... O-O
{[%clk 0:02:57.7]} 6. e3 {[%clk 0:02:56.8]} 6... c5 {[%clk 0:02:57]} 7. Bd3
{[%clk 0:02:53.9]} 7... Nc6 {[%clk 0:02:56.3]} 8. a3 {[%clk 0:02:51]} 8... dxc4
{[%clk 0:02:48.7]} 9. Bxc4 {[%clk 0:02:49.5]} 9... cxd4 {[%clk 0:02:49]} 10.
exd4 {[%clk 0:02:48.7]} 10... b6 {[%clk 0:02:48.5]} 11. O-O {[%clk 0:02:46]}
11... Bb7 {[%clk 0:02:48.3]} 12. Qd3 {[%clk 0:02:43.8]} 12... Rc8 {[%clk
0:02:42.2]} 13. Ba2 {[%clk 0:02:41.9]} 13... h6 {[%clk 0:02:36.4]} 14. Rad1
{[%clk 0:02:40.3]} 14... Nb8 {[%clk 0:02:18.2]} 15. Ne5 {[%clk 0:02:36.6]} 15...
Nbd7 {[%clk 0:02:10.5]} 16. Qe2 {[%clk 0:02:22.4]} 16... Nd5 {[%clk 0:01:57.4]}
17. Nxd5 {[%clk 0:01:43.3]} 17... Bxd5 {[%clk 0:01:58.3]} 18. Bxd5 {[%clk
0:01:41.8]} 18... exd5 {[%clk 0:01:57]} 19. Rfe1 {[%clk 0:01:13.7]} 19... Nxe5
{[%clk 0:01:43.4]} 20. dxe5 {[%clk 0:01:11.9]} 20... Qd7 {[%clk 0:01:41.7]} 21.
Rd3 {[%clk 0:01:03.4]} 21... Qb5 {[%clk 0:01:25.7]} 22. Qd2 {[%clk 0:01:00.2]}
22... Rfd8 {[%clk 0:01:23.7]} 23. Rg3 {[%clk 0:00:55.7]} 23... Kf8 {[%clk
0:01:11.4]} 24. e6 {[%clk 0:00:52.4]} 24... fxe6 {[%clk 0:01:03.3]} 25. Rxe6
{[%clk 0:00:34.6]} 25... Rc6 {[%clk 0:01:00.5]} 26. Rxc6 {[%clk 0:00:28.2]}
26... Qxc6 {[%clk 0:01:01.4]} 27. Be5 {[%clk 0:00:26.3]} 27... g5 {[%clk
0:00:46.8]} 28. h4 {[%clk 0:00:12.1]} 28... Ke8 {[%clk 0:00:42.2]} 29. Bd4
{[%clk 0:00:09.6]} 29... Kd7 {[%clk 0:00:40.3]} 30. h5 {[%clk 0:00:07.9]} 30...
Rc8 {[%clk 0:00:24.7]} 31. Rc3 {[%clk 0:00:05.8]} 31... Qe6 {[%clk 0:00:23.5]}
32. Rd3 {[%clk 0:00:06.1]} 32... Kc7 {[%clk 0:00:21.6]} 33. Be3 {[%clk
0:00:05.2]} 33... Rd8 {[%clk 0:00:19.7]} 34. Rc3+ {[%clk 0:00:05]} 34... Kb7
{[%clk 0:00:17.8]} 35. Bd4 {[%clk 0:00:05.6]} 35... Bd6 {[%clk 0:00:16.5]} 36.
Re3 {[%clk 0:00:05.1]} 36... Qf7 {[%clk 0:00:14.6]} 37. Rf3 {[%clk 0:00:05]}
37... Qxh5 {[%clk 0:00:14.1]} 38. Qd3 {[%clk 0:00:04.6]} 38... g4 {[%clk
0:00:12.4]} 39. Rf6 {[%clk 0:00:03.6]} 39... Qh2+ {[%clk 0:00:11.3]} 40. Kf1
{[%clk 0:00:02.7]} 40... Re8 {[%clk 0:00:11.3]} 0-1

[Event "*** Titled Tuesday Blitz"]
[Site "Chess.com"]
[Date "2020.04.07"]
[Round "3"]
[White "RobertoRochaMAO"]
[Black "coalescenet"]
[Result "0-1"]
[WhiteElo "2002"]
[BlackElo "2332"]
[TimeControl "180+1"]
[EndTime "13:30:02 PDT"]
[Termination "coalescenet won on time"]

1. e4 {[%clk 0:03:00.9]} 1... c6 {[%clk 0:02:59.5]} 2. Nf3 {[%clk 0:03:01]} 2...
d5 {[%clk 0:03:00.4]} 3. exd5 {[%clk 0:03:01.3]} 3... cxd5 {[%clk 0:03:01.3]} 4.
d4 {[%clk 0:03:01.9]} 4... Qc7 {[%clk 0:02:58.5]} 5. Be3 {[%clk 0:03:01.2]} 5...
Bg4 {[%clk 0:02:55.7]} 6. c3 {[%clk 0:02:57.2]} 6... Nc6 {[%clk 0:02:55.6]} 7.
Nbd2 {[%clk 0:02:56.8]} 7... e6 {[%clk 0:02:55.3]} 8. Bb5 {[%clk 0:02:56.2]}
8... Bd6 {[%clk 0:02:54.5]} 9. h3 {[%clk 0:02:52.5]} 9... Bh5 {[%clk 0:02:52.2]}
10. Qa4 {[%clk 0:02:48.9]} 10... Ne7 {[%clk 0:02:50.5]} 11. O-O {[%clk
0:02:45.2]} 11... a6 {[%clk 0:02:49.6]} 12. Bd3 {[%clk 0:02:45]} 12... O-O
{[%clk 0:02:45.7]} 13. Qc2 {[%clk 0:02:44.9]} 13... Bg6 {[%clk 0:02:45.1]} 14.
Rfe1 {[%clk 0:02:42.5]} 14... Rac8 {[%clk 0:02:43.8]} 15. a3 {[%clk 0:02:37.7]}
15... Rb8 {[%clk 0:02:40.6]} 16. Nf1 {[%clk 0:02:30.3]} 16... Rfc8 {[%clk
0:02:40]} 17. Bg5 {[%clk 0:02:22.8]} 17... b5 {[%clk 0:02:22.4]} 18. Qe2 {[%clk
0:02:21.8]} 18... Qb6 {[%clk 0:02:13.3]} 19. Rad1 {[%clk 0:02:04.3]} 19... a5
{[%clk 0:02:11.6]} 20. Be3 {[%clk 0:02:01]} 20... Bxd3 {[%clk 0:02:03]} 21. Qxd3
{[%clk 0:02:00.8]} 21... b4 {[%clk 0:02:03.4]} 22. Ne5 {[%clk 0:02:00.6]} 22...
bxc3 {[%clk 0:01:55.8]} 23. bxc3 {[%clk 0:01:52.4]} 23... Bxe5 {[%clk
0:01:38.3]} 24. dxe5 {[%clk 0:01:43.7]} 24... Qb5 {[%clk 0:01:37.7]} 25. f4
{[%clk 0:01:19.4]} 25... Nf5 {[%clk 0:01:12.7]} 26. Bf2 {[%clk 0:01:12.3]} 26...
Qxd3 {[%clk 0:01:05]} 27. Rxd3 {[%clk 0:01:12]} 27... Rb3 {[%clk 0:01:05.5]} 28.
a4 {[%clk 0:00:43.2]} 28... h5 {[%clk 0:00:56.6]} 29. Ne3 {[%clk 0:00:32]} 29...
Nce7 {[%clk 0:00:49.6]} 30. Nd1 {[%clk 0:00:24.7]} 30... Rc4 {[%clk 0:00:47.1]}
31. Bb6 {[%clk 0:00:19.8]} 31... Rxa4 {[%clk 0:00:45.2]} 32. Bd8 {[%clk
0:00:19.1]} 32... Nc6 {[%clk 0:00:43.2]} 33. Bc7 {[%clk 0:00:18.3]} 33... Rxf4
{[%clk 0:00:36.5]} 34. g4 {[%clk 0:00:17.8]} 34... hxg4 {[%clk 0:00:35.8]} 35.
h4 {[%clk 0:00:18]} 35... Nxh4 {[%clk 0:00:35.1]} 36. Rf1 {[%clk 0:00:17.3]}
36... Nf3+ {[%clk 0:00:34.2]} 37. Kg2 {[%clk 0:00:16.9]} 37... g5 {[%clk
0:00:28.4]} 38. Ne3 {[%clk 0:00:10.7]} 38... Rb2+ {[%clk 0:00:26.3]} 39. Kg3
{[%clk 0:00:10.1]} 39... Nfxe5 {[%clk 0:00:20.3]} 40. Bxe5 {[%clk 0:00:09.3]}
40... Nxe5 {[%clk 0:00:20.9]} 41. Rd4 {[%clk 0:00:03.7]} 41... Rf3+ {[%clk
0:00:20.7]} 42. Rxf3 {[%clk 0:00:03.4]} 42... gxf3 {[%clk 0:00:20.7]} 43. Ng4
{[%clk 0:00:01.6]} 43... Rg2+ {[%clk 0:00:19.1]} 0-1